[Event "Titled Tuesday Blitz November 14 Late 2023"]
[White "JackRodgers"]
[Black "Nihal Sarin"]
[BlackFideId "25092340"]
[WhiteElo "2512"]
[BlackElo "3101"]
[Result "0-1"]
[Round "1"]
[TimeControl "180+1"]
[Date "2023.11.14"]
[WhiteClock "0:00:01"]
[BlackClock "0:02:19"]
[Board "3"]

1. d4 {[%clk 0:03:00]}  Nf6 {[%clk 0:02:59]} 2. Bg5 {[%clk 0:02:59]}  Ne4 {[%clk 0:02:59]} 3. h4 {[%clk 0:02:59]}  c5 {[%clk 0:02:59]} 4. dxc5 {[%clk 0:02:59]}  Nxc5 {[%clk 0:02:59]} 5. Nf3 {[%clk 0:02:51]}  Nc6 {[%clk 0:03:00]} 6. Nc3 {[%clk 0:02:46]}  h6 {[%clk 0:03:00]} 7. Be3 {[%clk 0:02:46]}  e6 {[%clk 0:03:00]} 8. g3 {[%clk 0:02:44]}  d5 {[%clk 0:03:00]} 9. Bg2 {[%clk 0:02:41]}  Be7 {[%clk 0:02:57]} 10. O-O {[%clk 0:02:36]}  O-O {[%clk 0:02:57]} 11. Nd4 {[%clk 0:02:32]}  Bd7 {[%clk 0:02:57]} 12. Nxc6 {[%clk 0:02:20]}  Bxc6 {[%clk 0:02:58]} 13. Bd4 {[%clk 0:02:20]}  Rc8 {[%clk 0:02:58]} 14. Qd2 {[%clk 0:02:13]}  a6 {[%clk 0:02:58]} 15. Rfe1 {[%clk 0:02:12]}  b5 {[%clk 0:02:58]} 16. a3 {[%clk 0:02:11]}  a5 {[%clk 0:02:56]} 17. Rad1 {[%clk 0:01:52]}  b4 {[%clk 0:02:54]} 18. axb4 {[%clk 0:01:53]}  axb4 {[%clk 0:02:55]} 19. Na2 {[%clk 0:01:49]}  b3 {[%clk 0:02:55]} 20. Bxc5 {[%clk 0:01:40]}  Bxc5 {[%clk 0:02:56]} 21. cxb3 {[%clk 0:01:38]}  Qb6 {[%clk 0:02:57]} 22. e3 {[%clk 0:01:35]}  Qxb3 {[%clk 0:02:57]} 23. Nc1 {[%clk 0:01:34]}  Qb6 {[%clk 0:02:56]} 24. Nd3 {[%clk 0:01:33]}  Be7 {[%clk 0:02:56]} 25. Rc1 {[%clk 0:01:28]}  Bb5 {[%clk 0:02:56]} 26. Rxc8 {[%clk 0:01:26]}  Rxc8 {[%clk 0:02:57]} 27. Rc1 {[%clk 0:01:26]}  Rb8 {[%clk 0:02:57]} 28. Ne5 {[%clk 0:01:16]}  h5 {[%clk 0:02:57]} 29. Bf3 {[%clk 0:01:11]}  Bf6 {[%clk 0:02:58]} 30. Qd4 {[%clk 0:01:04]}  g6 {[%clk 0:02:56]} 31. Bd1 {[%clk 0:00:46]}  Kg7 {[%clk 0:02:54]} 32. f4 {[%clk 0:00:42]}  Be8 {[%clk 0:02:47]} 33. Qxb6 {[%clk 0:00:38]}  Rxb6 {[%clk 0:02:48]} 34. b3 {[%clk 0:00:36]}  Rb4 {[%clk 0:02:44]} 35. Rc8 {[%clk 0:00:33]}  Bxe5 {[%clk 0:02:36]} 36. Rxe8 {[%clk 0:00:27]}  Bc7 {[%clk 0:02:31]} 37. Kf2 {[%clk 0:00:13]}  Bb6 {[%clk 0:02:32]} 38. Bc2 {[%clk 0:00:13]}  Kf6 {[%clk 0:02:30]} 39. Kf3 {[%clk 0:00:12]}  Bc5 {[%clk 0:02:25]} 40. Rc8 {[%clk 0:00:11]}  Be7 {[%clk 0:02:25]} 41. Rc7 {[%clk 0:00:10]}  Rb8 {[%clk 0:02:24]} 42. Rc6 {[%clk 0:00:08]}  Ra8 {[%clk 0:02:24]} 43. Rc7 {[%clk 0:00:09]}  Ra1 {[%clk 0:02:23]} 44. Rc6 {[%clk 0:00:09]}  Rf1+ {[%clk 0:02:22]} 45. Ke2 {[%clk 0:00:09]}  Rg1 {[%clk 0:02:23]} 46. Kf2 {[%clk 0:00:09]}  Rc1 {[%clk 0:02:23]} 47. e4 {[%clk 0:00:09]}  d4 {[%clk 0:02:18]} 48. e5+ {[%clk 0:00:08]}  Kg7 {[%clk 0:02:19]} 49. Kf3 {[%clk 0:00:08]}  d3 {[%clk 0:02:19]} 50. Ke3 {[%clk 0:00:07]}  dxc2 {[%clk 0:02:18]} 51. Kd2 {[%clk 0:00:07]}  Rg1 {[%clk 0:02:19]} 52. Rxc2 {[%clk 0:00:01]}  Rxg3 {[%clk 0:02:19]} 0-1


[Site "https://www.chess.com"]

[Event "Titled Tuesday Blitz November 14 Late 2023"]
[White "Yoo, Christopher Woojin"]
[Black "D`Arruda, Ricardo D."]
[WhiteFideId "30909694"]
[BlackFideId "100692"]
[WhiteElo "3068"]
[BlackElo "2511"]
[Result "1-0"]
[Round "1"]
[TimeControl "180+1"]
[Date "2023.11.14"]
[WhiteClock "0:01:56"]
[BlackClock "0:01:06"]
[Board "6"]

1. d4 {[%clk 0:03:00]}  Nf6 {[%clk 0:02:59]} 2. Nf3 {[%clk 0:02:58]}  e6 {[%clk 0:02:53]} 3. Bg5 {[%clk 0:02:57]}  d5 {[%clk 0:02:53]} 4. Nbd2 {[%clk 0:02:57]}  Be7 {[%clk 0:02:53]} 5. e3 {[%clk 0:02:57]}  Nbd7 {[%clk 0:02:53]} 6. c4 {[%clk 0:02:57]}  c6 {[%clk 0:02:53]} 7. Qc2 {[%clk 0:02:57]}  h6 {[%clk 0:02:52]} 8. Bh4 {[%clk 0:02:57]}  b6 {[%clk 0:02:46]} 9. cxd5 {[%clk 0:02:57]}  cxd5 {[%clk 0:02:46]} 10. Bb5 {[%clk 0:02:56]}  Bb7 {[%clk 0:02:44]} 11. Ne5 {[%clk 0:02:51]}  O-O {[%clk 0:02:38]} 12. Nxd7 {[%clk 0:02:47]}  Nxd7 {[%clk 0:02:34]} 13. Bxe7 {[%clk 0:02:46]}  Qxe7 {[%clk 0:02:35]} 14. Qc7 {[%clk 0:02:46]}  Bc8 {[%clk 0:02:09]} 15. Bc6 {[%clk 0:02:46]}  Rb8 {[%clk 0:02:06]} 16. Qxa7 {[%clk 0:02:46]}  Qd6 {[%clk 0:02:04]} 17. Rc1 {[%clk 0:02:45]}  Rd8 {[%clk 0:01:53]} 18. O-O {[%clk 0:02:42]}  Nf8 {[%clk 0:01:52]} 19. Nf3 {[%clk 0:02:41]}  f6 {[%clk 0:01:51]} 20. Rc3 {[%clk 0:02:38]}  Bd7 {[%clk 0:01:50]} 21. Rfc1 {[%clk 0:02:37]}  Qb4 {[%clk 0:01:40]} 22. Bxd7 {[%clk 0:02:00]}  Nxd7 {[%clk 0:01:37]} 23. Rc7 {[%clk 0:01:57]}  Qxb2 {[%clk 0:01:31]} 24. Rf1 {[%clk 0:01:57]}  Qb5 {[%clk 0:01:06]} 25. a4 {[%clk 0:01:56]} 1-0


[Site "https://www.chess.com"]

[Event "Titled Tuesday Blitz November 14 Late 2023"]
[White "Ronka, Erik"]
[Black "Niemann, Hans Moke"]
[WhiteFideId "505080"]
[BlackFideId "2093596"]
[WhiteElo "2510"]
[BlackElo "3059"]
[Result "0-1"]
[Round "1"]
[TimeControl "180+1"]
[Date "2023.11.14"]
[WhiteClock "0:00:02"]
[BlackClock "0:02:17"]
[Board "7"]

1. e4 {[%clk 0:03:00]}  c5 {[%clk 0:02:57]} 2. Nf3 {[%clk 0:03:01]}  Nc6 {[%clk 0:02:58]} 3. d4 {[%clk 0:03:01]}  cxd4 {[%clk 0:02:58]} 4. Nxd4 {[%clk 0:03:02]}  Nf6 {[%clk 0:02:59]} 5. Nc3 {[%clk 0:03:03]}  d6 {[%clk 0:02:59]} 6. Bg5 {[%clk 0:03:02]}  e6 {[%clk 0:02:57]} 7. Qd2 {[%clk 0:03:03]}  a6 {[%clk 0:02:56]} 8. O-O-O {[%clk 0:03:03]}  Bd7 {[%clk 0:02:56]} 9. f4 {[%clk 0:03:03]}  Be7 {[%clk 0:02:56]} 10. Nf3 {[%clk 0:03:03]}  b5 {[%clk 0:02:56]} 11. Bxf6 {[%clk 0:03:02]}  gxf6 {[%clk 0:02:56]} 12. f5 {[%clk 0:03:03]}  Qb6 {[%clk 0:02:52]} 13. g3 {[%clk 0:02:55]}  O-O-O {[%clk 0:02:52]} 14. fxe6 {[%clk 0:02:49]}  fxe6 {[%clk 0:02:51]} 15. Bh3 {[%clk 0:02:49]}  Kb8 {[%clk 0:02:51]} 16. Ne2 {[%clk 0:02:48]}  Ne5 {[%clk 0:02:47]} 17. Ned4 {[%clk 0:02:13]}  Nc4 {[%clk 0:02:38]} 18. Qe2 {[%clk 0:02:07]}  f5 {[%clk 0:02:35]} 19. exf5 {[%clk 0:01:03]}  e5 {[%clk 0:02:35]} 20. Ne6 {[%clk 0:00:59]}  Bc6 {[%clk 0:02:34]} 21. Nxd8 {[%clk 0:00:55]}  Rxd8 {[%clk 0:02:32]} 22. Rhe1 {[%clk 0:00:49]}  Qa5 {[%clk 0:02:26]} 23. Kb1 {[%clk 0:00:44]}  Bxf3 {[%clk 0:02:26]} 24. Qxf3 {[%clk 0:00:43]}  Qxe1 {[%clk 0:02:26]} 25. Qd3 {[%clk 0:00:05]}  Qb4 {[%clk 0:02:21]} 26. b3 {[%clk 0:00:05]}  d5 {[%clk 0:02:18]} 27. Bg2 {[%clk 0:00:04]}  e4 {[%clk 0:02:17]} 28. Qd4 {[%clk 0:00:04]}  Na3+ {[%clk 0:02:16]} 29. Kb2 {[%clk 0:00:05]}  Qxd4+ {[%clk 0:02:16]} 30. Rxd4 {[%clk 0:00:02]}  Bf6 {[%clk 0:02:17]} 0-1


[Site "https://www.chess.com"]

[Event "Titled Tuesday Blitz November 14 Late 2023"]
[White "Erigaisi Arjun"]
[Black "Mordechai, Hanan"]
[WhiteFideId "35009192"]
[BlackFideId "2804166"]
[WhiteElo "3032"]
[BlackElo "2509"]
[Result "1-0"]
[Round "1"]
[TimeControl "180+1"]
[Date "2023.11.14"]
[WhiteClock "0:02:02"]
[BlackClock "0:00:07"]
[Board "8"]

1. c4 {[%clk 0:03:00]}  g6 {[%clk 0:02:56]} 2. g3 {[%clk 0:02:59]}  Bg7 {[%clk 0:02:57]} 3. Bg2 {[%clk 0:02:59]}  e5 {[%clk 0:02:55]} 4. Nc3 {[%clk 0:02:59]}  Ne7 {[%clk 0:02:55]} 5. Nf3 {[%clk 0:02:58]}  O-O {[%clk 0:02:54]} 6. h4 {[%clk 0:02:58]}  d5 {[%clk 0:02:37]} 7. cxd5 {[%clk 0:02:56]}  Nxd5 {[%clk 0:02:38]} 8. h5 {[%clk 0:02:54]}  Nxc3 {[%clk 0:02:27]} 9. bxc3 {[%clk 0:02:54]}  e4 {[%clk 0:02:27]} 10. Nd4 {[%clk 0:02:53]}  c5 {[%clk 0:02:08]} 11. Nc2 {[%clk 0:02:53]}  Qe7 {[%clk 0:02:02]} 12. Ne3 {[%clk 0:02:51]}  Rd8 {[%clk 0:01:59]} 13. hxg6 {[%clk 0:02:49]}  hxg6 {[%clk 0:01:56]} 14. Qc2 {[%clk 0:02:46]}  f5 {[%clk 0:01:50]} 15. Bb2 {[%clk 0:02:45]}  Be6 {[%clk 0:01:49]} 16. f3 {[%clk 0:02:41]}  Qd6 {[%clk 0:01:38]} 17. O-O-O {[%clk 0:02:39]}  exf3 {[%clk 0:01:08]} 18. Bxf3 {[%clk 0:02:40]}  Nc6 {[%clk 0:01:08]} 19. g4 {[%clk 0:02:37]}  f4 {[%clk 0:00:58]} 20. Qxg6 {[%clk 0:02:23]}  fxe3 {[%clk 0:00:48]} 21. dxe3 {[%clk 0:02:24]}  Qe5 {[%clk 0:00:39]} 22. Rdf1 {[%clk 0:02:20]}  Qxe3+ {[%clk 0:00:22]} 23. Kb1 {[%clk 0:02:19]}  Bf7 {[%clk 0:00:21]} 24. Bd5 {[%clk 0:02:05]}  Ne5 {[%clk 0:00:06]} 25. Bxf7+ {[%clk 0:02:02]}  Kf8 {[%clk 0:00:07]} 1-0


[Site "https://www.chess.com"]

[Event "Titled Tuesday Blitz November 14 Late 2023"]
[White "Droin, Augustin"]
[Black "Paravyan, David"]
[WhiteFideId "45105987"]
[BlackFideId "4194985"]
[WhiteElo "2509"]
[BlackElo "3029"]
[Result "1/2-1/2"]
[Round "1"]
[TimeControl "180+1"]
[Date "2023.11.14"]
[WhiteClock "0:00:10"]
[BlackClock "0:01:29"]
[Board "9"]

1. e4 {[%clk 0:03:00]}  e5 {[%clk 0:03:00]} 2. Nf3 {[%clk 0:02:59]}  Nf6 {[%clk 0:03:00]} 3. d4 {[%clk 0:02:57]}  Nxe4 {[%clk 0:03:00]} 4. Bd3 {[%clk 0:02:57]}  d5 {[%clk 0:03:00]} 5. Nxe5 {[%clk 0:02:57]}  Nd7 {[%clk 0:03:01]} 6. Nc3 {[%clk 0:02:56]}  Bb4 {[%clk 0:03:00]} 7. O-O {[%clk 0:02:53]}  Nxe5 {[%clk 0:02:59]} 8. dxe5 {[%clk 0:02:51]}  Nxc3 {[%clk 0:03:00]} 9. bxc3 {[%clk 0:02:52]}  Bxc3 {[%clk 0:02:59]} 10. Rb1 {[%clk 0:02:52]}  O-O {[%clk 0:02:58]} 11. Bxh7+ {[%clk 0:02:52]}  Kxh7 {[%clk 0:02:59]} 12. Qd3+ {[%clk 0:02:53]}  Kg8 {[%clk 0:02:59]} 13. Qxc3 {[%clk 0:02:53]}  a5 {[%clk 0:03:00]} 14. Qg3 {[%clk 0:02:38]}  Ra6 {[%clk 0:02:59]} 15. Bg5 {[%clk 0:02:38]}  Qd7 {[%clk 0:02:59]} 16. f4 {[%clk 0:02:37]}  Qf5 {[%clk 0:02:54]} 17. Rf2 {[%clk 0:02:34]}  Rg6 {[%clk 0:02:35]} 18. Qc3 {[%clk 0:02:05]}  Rc6 {[%clk 0:02:34]} 19. Qd2 {[%clk 0:02:04]}  b6 {[%clk 0:02:16]} 20. h3 {[%clk 0:01:50]}  Re8 {[%clk 0:02:00]} 21. g4 {[%clk 0:01:41]}  Qe4 {[%clk 0:02:01]} 22. Re1 {[%clk 0:01:39]}  Qb4 {[%clk 0:02:00]} 23. f5 {[%clk 0:01:33]}  f6 {[%clk 0:01:57]} 24. Qxd5+ {[%clk 0:01:25]}  Kh7 {[%clk 0:01:47]} 25. Bd2 {[%clk 0:01:14]}  Qc4 {[%clk 0:01:45]} 26. Qxc4 {[%clk 0:01:13]}  Rxc4 {[%clk 0:01:46]} 27. exf6 {[%clk 0:01:14]}  Rxe1+ {[%clk 0:01:45]} 28. Bxe1 {[%clk 0:01:15]}  gxf6 {[%clk 0:01:45]} 29. Re2 {[%clk 0:01:15]}  Bb7 {[%clk 0:01:40]} 30. Bg3 {[%clk 0:01:14]}  Be4 {[%clk 0:01:35]} 31. Bxc7 {[%clk 0:01:12]}  Rxc7 {[%clk 0:01:33]} 32. Rxe4 {[%clk 0:01:12]}  Rxc2 {[%clk 0:01:34]} 33. a4 {[%clk 0:00:55]}  Rb2 {[%clk 0:01:33]} 34. Re6 {[%clk 0:00:44]}  Kg7 {[%clk 0:01:32]} 35. Kf1 {[%clk 0:00:27]}  Kf7 {[%clk 0:01:29]} 36. Ke1 {[%clk 0:00:22]}  Rb3 {[%clk 0:01:29]} 37. Kf2 {[%clk 0:00:21]}  Rxh3 {[%clk 0:01:28]} 38. Rxb6 {[%clk 0:00:20]}  Ra3 {[%clk 0:01:28]} 39. Rb7+ {[%clk 0:00:21]}  Kg8 {[%clk 0:01:28]} 40. Ra7 {[%clk 0:00:21]}  Rxa4 {[%clk 0:01:28]} 41. Kg3 {[%clk 0:00:22]}  Ra1 {[%clk 0:01:28]} 42. Kh4 {[%clk 0:00:18]}  Rh1+ {[%clk 0:01:28]} 43. Kg3 {[%clk 0:00:18]}  Ra1 {[%clk 0:01:28]} 44. Kh4 {[%clk 0:00:09]}  Rh1+ {[%clk 0:01:28]} 45. Kg3 {[%clk 0:00:10]}  Rg1+ {[%clk 0:01:29]} 46. Kh4 {[%clk 0:00:10]}  Rh1+ {[%clk 0:01:29]} 1/2-1/2


[Site "https://www.chess.com"]

[Event "Titled Tuesday Blitz November 14 Late 2023"]
[White "Hakobyan, Aram"]
[Black "Kuegel, Tobias"]
[WhiteFideId "13306677"]
[BlackFideId "4636295"]
[WhiteElo "3027"]
[BlackElo "2509"]
[Result "1-0"]
[Round "1"]
[TimeControl "180+1"]
[Date "2023.11.14"]
[WhiteClock "0:00:26"]
[BlackClock "0:00:07"]
[Board "10"]

1. b3 {[%clk 0:03:00]}  e5 {[%clk 0:02:59]} 2. Bb2 {[%clk 0:03:01]}  Nc6 {[%clk 0:02:58]} 3. c4 {[%clk 0:03:02]}  Nge7 {[%clk 0:02:57]} 4. Nf3 {[%clk 0:03:01]}  e4 {[%clk 0:02:36]} 5. Nd4 {[%clk 0:02:53]}  d5 {[%clk 0:02:34]} 6. Nxc6 {[%clk 0:02:47]}  Nxc6 {[%clk 0:02:33]} 7. cxd5 {[%clk 0:02:47]}  Qxd5 {[%clk 0:02:34]} 8. Nc3 {[%clk 0:02:48]}  Qf5 {[%clk 0:02:32]} 9. Qb1 {[%clk 0:02:42]}  Be6 {[%clk 0:02:14]} 10. g3 {[%clk 0:02:21]}  O-O-O {[%clk 0:02:01]} 11. Bg2 {[%clk 0:02:17]}  Rxd2 {[%clk 0:01:44]} 12. Kxd2 {[%clk 0:01:39]}  Qxf2 {[%clk 0:01:41]} 13. Qxe4 {[%clk 0:01:31]}  g6 {[%clk 0:01:25]} 14. Raf1 {[%clk 0:01:05]}  Bh6+ {[%clk 0:01:21]} 15. Kc2 {[%clk 0:01:06]}  Qc5 {[%clk 0:01:18]} 16. Kb1 {[%clk 0:01:00]}  Rd8 {[%clk 0:01:06]} 17. Ka1 {[%clk 0:00:51]}  Rd4 {[%clk 0:00:52]} 18. Na4 {[%clk 0:00:44]}  Qb4 {[%clk 0:00:21]} 19. Bxd4 {[%clk 0:00:43]}  Nxd4 {[%clk 0:00:21]} 20. Qxb7+ {[%clk 0:00:43]}  Qxb7 {[%clk 0:00:20]} 21. Bxb7+ {[%clk 0:00:44]}  Kxb7 {[%clk 0:00:21]} 22. Nc5+ {[%clk 0:00:45]}  Kc6 {[%clk 0:00:20]} 23. Nxe6 {[%clk 0:00:46]}  fxe6 {[%clk 0:00:13]} 24. Kb1 {[%clk 0:00:43]}  Nxe2 {[%clk 0:00:12]} 25. Rf7 {[%clk 0:00:42]}  Be3 {[%clk 0:00:09]} 26. Re1 {[%clk 0:00:40]}  Nc3+ {[%clk 0:00:09]} 27. Kc2 {[%clk 0:00:41]}  Bd4 {[%clk 0:00:09]} 28. Rxe6+ {[%clk 0:00:39]}  Kd5 {[%clk 0:00:09]} 29. Ra6 {[%clk 0:00:34]}  c5 {[%clk 0:00:08]} 30. Raxa7 {[%clk 0:00:32]}  Ke4 {[%clk 0:00:05]} 31. Rae7+ {[%clk 0:00:32]}  Kd5 {[%clk 0:00:04]} 32. Rd7+ {[%clk 0:00:33]}  Ke4 {[%clk 0:00:04]} 33. Rfe7+ {[%clk 0:00:34]}  Kf3 {[%clk 0:00:04]} 34. Rxh7 {[%clk 0:00:34]}  Nxa2 {[%clk 0:00:04]} 35. Rb7 {[%clk 0:00:30]}  Nb4+ {[%clk 0:00:02]} 36. Rxb4 {[%clk 0:00:29]}  cxb4 {[%clk 0:00:03]} 37. Kd3 {[%clk 0:00:30]}  Bc3 {[%clk 0:00:03]} 38. Rh6 {[%clk 0:00:30]}  g5 {[%clk 0:00:04]} 39. Rh7 {[%clk 0:00:21]}  g4 {[%clk 0:00:04]} 40. Rh4 {[%clk 0:00:19]}  Be1 {[%clk 0:00:02]} 41. h3 {[%clk 0:00:19]}  gxh3 {[%clk 0:00:01]} 42. Rxh3 {[%clk 0:00:20]}  Bxg3 {[%clk 0:00:01]} 43. Kc4 {[%clk 0:00:20]}  Kg4 {[%clk 0:00:01]} 44. Rxg3+ {[%clk 0:00:20]}  Kxg3 {[%clk 0:00:02]} 45. Kxb4 {[%clk 0:00:21]}  Kf4 {[%clk 0:00:03]} 46. Kc5 {[%clk 0:00:22]}  Ke5 {[%clk 0:00:03]} 47. b4 {[%clk 0:00:22]}  Ke6 {[%clk 0:00:04]} 48. Kc6 {[%clk 0:00:23]}  Ke7 {[%clk 0:00:05]} 49. Kc7 {[%clk 0:00:23]}  Ke6 {[%clk 0:00:04]} 50. b5 {[%clk 0:00:23]}  Kd5 {[%clk 0:00:05]} 51. b6 {[%clk 0:00:24]}  Kc5 {[%clk 0:00:05]} 52. b7 {[%clk 0:00:25]}  Kb5 {[%clk 0:00:06]} 53. b8=Q+ {[%clk 0:00:26]}  Ka6 {[%clk 0:00:07]} 54. Qb6# {[%clk 0:00:26]} 1-0


[Site "https://www.chess.com"]

[Event "Titled Tuesday Blitz November 14 Late 2023"]
[White "Sokac, Marko"]
[Black "Ibarra Jerez, Jose Carlos"]
[WhiteFideId "14531356"]
[BlackFideId "2226332"]
[WhiteElo "2506"]
[BlackElo "2961"]
[Result "0-1"]
[Round "1"]
[TimeControl "180+1"]
[Date "2023.11.14"]
[WhiteClock "0:00:02"]
[BlackClock "0:00:03"]
[Board "15"]

1. e4 {[%clk 0:03:00]}  c5 {[%clk 0:02:58]} 2. a3 {[%clk 0:03:00]}  g6 {[%clk 0:02:56]} 3. h4 {[%clk 0:03:00]}  Nf6 {[%clk 0:02:55]} 4. e5 {[%clk 0:02:57]}  Nh5 {[%clk 0:02:56]} 5. g4 {[%clk 0:02:51]}  Nf4 {[%clk 0:02:55]} 6. d4 {[%clk 0:02:51]}  Nd5 {[%clk 0:02:49]} 7. c4 {[%clk 0:02:50]}  Nc7 {[%clk 0:02:46]} 8. d5 {[%clk 0:02:42]}  d6 {[%clk 0:02:44]} 9. f4 {[%clk 0:02:41]}  Bg7 {[%clk 0:02:42]} 10. h5 {[%clk 0:02:33]}  O-O {[%clk 0:02:35]} 11. hxg6 {[%clk 0:02:28]}  hxg6 {[%clk 0:02:34]} 12. e6 {[%clk 0:02:07]}  fxe6 {[%clk 0:02:27]} 13. Bd3 {[%clk 0:02:06]}  exd5 {[%clk 0:02:24]} 14. Bxg6 {[%clk 0:02:04]}  Rf6 {[%clk 0:02:20]} 15. f5 {[%clk 0:02:00]}  dxc4 {[%clk 0:02:09]} 16. Qc2 {[%clk 0:01:25]}  d5 {[%clk 0:02:01]} 17. Qh2 {[%clk 0:01:20]}  Qd6 {[%clk 0:01:44]} 18. Bf4 {[%clk 0:01:19]}  e5 {[%clk 0:01:27]} 19. Qh7+ {[%clk 0:01:14]}  Kf8 {[%clk 0:01:27]} 20. Bh6 {[%clk 0:01:10]}  Rxg6 {[%clk 0:01:25]} 21. fxg6 {[%clk 0:01:01]}  Qf6 {[%clk 0:01:12]} 22. Qh8+ {[%clk 0:00:58]}  Ke7 {[%clk 0:01:12]} 23. Qxg7+ {[%clk 0:00:32]}  Qxg7 {[%clk 0:01:10]} 24. Bxg7 {[%clk 0:00:33]}  Nc6 {[%clk 0:01:10]} 25. Nf3 {[%clk 0:00:33]}  e4 {[%clk 0:00:31]} 26. Ne5 {[%clk 0:00:32]}  Nd4 {[%clk 0:00:31]} 27. O-O {[%clk 0:00:27]}  Be6 {[%clk 0:00:26]} 28. Nc3 {[%clk 0:00:24]}  Rg8 {[%clk 0:00:25]} 29. Bf6+ {[%clk 0:00:24]}  Kd6 {[%clk 0:00:25]} 30. Nf7+ {[%clk 0:00:20]}  Kd7 {[%clk 0:00:21]} 31. Bxd4 {[%clk 0:00:20]}  cxd4 {[%clk 0:00:21]} 32. Ne2 {[%clk 0:00:21]}  d3 {[%clk 0:00:17]} 33. Nd4 {[%clk 0:00:21]}  Bxg4 {[%clk 0:00:17]} 34. Ne5+ {[%clk 0:00:21]}  Kd6 {[%clk 0:00:18]} 35. Nxg4 {[%clk 0:00:22]}  Rxg6 {[%clk 0:00:18]} 36. Rf4 {[%clk 0:00:22]}  e3 {[%clk 0:00:15]} 37. Kf1 {[%clk 0:00:20]}  e2+ {[%clk 0:00:10]} 38. Nxe2 {[%clk 0:00:19]}  dxe2+ {[%clk 0:00:11]} 39. Kxe2 {[%clk 0:00:20]}  Ne6 {[%clk 0:00:11]} 40. Raf1 {[%clk 0:00:11]}  Nxf4+ {[%clk 0:00:11]} 41. Rxf4 {[%clk 0:00:12]}  Kc5 {[%clk 0:00:10]} 42. Ne3 {[%clk 0:00:11]}  Rb6 {[%clk 0:00:10]} 43. Nd1 {[%clk 0:00:07]}  Rh6 {[%clk 0:00:05]} 44. Kd2 {[%clk 0:00:07]}  Rh2+ {[%clk 0:00:05]} 45. Rf2 {[%clk 0:00:07]}  Rh3 {[%clk 0:00:05]} 46. Rf7 {[%clk 0:00:08]}  Kc6 {[%clk 0:00:04]} 47. Rf6+ {[%clk 0:00:08]}  Kc5 {[%clk 0:00:04]} 48. Rf7 {[%clk 0:00:07]}  Kc6 {[%clk 0:00:04]} 49. Ne3 {[%clk 0:00:08]}  Rh2+ {[%clk 0:00:04]} 50. Kc3 {[%clk 0:00:08]}  Re2 {[%clk 0:00:04]} 51. Nc2 {[%clk 0:00:08]}  Re4 {[%clk 0:00:04]} 52. Nd4+ {[%clk 0:00:08]}  Kc5 {[%clk 0:00:04]} 53. Nc2 {[%clk 0:00:06]}  d4+ {[%clk 0:00:04]} 54. Nxd4 {[%clk 0:00:05]}  Re3+ {[%clk 0:00:04]} 55. Kc2 {[%clk 0:00:03]}  Kxd4 {[%clk 0:00:04]} 56. Rxb7 {[%clk 0:00:03]}  Re2+ {[%clk 0:00:05]} 57. Kb1 {[%clk 0:00:04]}  a5 {[%clk 0:00:04]} 58. Ra7 {[%clk 0:00:04]}  c3 {[%clk 0:00:04]} 59. bxc3+ {[%clk 0:00:03]}  Kxc3 {[%clk 0:00:05]} 60. Rc7+ {[%clk 0:00:04]}  Kb3 {[%clk 0:00:05]} 61. Rb7+ {[%clk 0:00:02]}  Kxa3 {[%clk 0:00:05]} 62. Rd7 {[%clk 0:00:02]}  Re1+ {[%clk 0:00:04]} 63. Kc2 {[%clk 0:00:03]}  a4 {[%clk 0:00:05]} 64. Rb7 {[%clk 0:00:02]}  Re2+ {[%clk 0:00:04]} 65. Kc1 {[%clk 0:00:02]}  Ka2 {[%clk 0:00:04]} 66. Kd1 {[%clk 0:00:02]}  Rb2 {[%clk 0:00:04]} 67. Kc1 {[%clk 0:00:02]}  Rxb7 {[%clk 0:00:03]} 0-1


[Site "https://www.chess.com"]

[Event "Titled Tuesday Blitz November 14 Late 2023"]
[White "Maghsoodloo, Parham"]
[Black "Pesotskiy, Mikhail"]
[WhiteFideId "12539929"]
[BlackFideId "34164453"]
[WhiteElo "2956"]
[BlackElo "2506"]
[Result "1-0"]
[Round "1"]
[TimeControl "180+1"]
[Date "2023.11.14"]
[WhiteClock "0:00:08"]
[BlackClock "0:00:10"]
[Board "16"]

1. e4 {[%clk 0:01:29]}  e6 {[%clk 0:02:54]} 2. d4 {[%clk 0:01:29]}  d5 {[%clk 0:02:54]} 3. Nc3 {[%clk 0:01:29]}  Bb4 {[%clk 0:02:54]} 4. e5 {[%clk 0:01:28]}  c5 {[%clk 0:02:54]} 5. Bd2 {[%clk 0:01:25]}  Ne7 {[%clk 0:02:54]} 6. Nf3 {[%clk 0:01:24]}  cxd4 {[%clk 0:02:18]} 7. Nb5 {[%clk 0:01:22]}  Bc5 {[%clk 0:02:16]} 8. b4 {[%clk 0:01:21]}  Bb6 {[%clk 0:02:16]} 9. a4 {[%clk 0:01:21]}  O-O {[%clk 0:02:15]} 10. a5 {[%clk 0:01:21]}  Bc7 {[%clk 0:02:15]} 11. Bd3 {[%clk 0:01:19]}  Ng6 {[%clk 0:02:11]} 12. Qe2 {[%clk 0:01:04]}  Nc6 {[%clk 0:02:10]} 13. Nxc7 {[%clk 0:01:03]}  Qxc7 {[%clk 0:02:11]} 14. Bxg6 {[%clk 0:01:00]}  fxg6 {[%clk 0:02:10]} 15. b5 {[%clk 0:01:01]}  Ne7 {[%clk 0:02:10]} 16. Bb4 {[%clk 0:00:53]}  Nf5 {[%clk 0:01:59]} 17. O-O {[%clk 0:00:42]}  Rd8 {[%clk 0:01:53]} 18. g4 {[%clk 0:00:37]}  Nh6 {[%clk 0:01:53]} 19. Nxd4 {[%clk 0:00:33]}  Bd7 {[%clk 0:01:52]} 20. f4 {[%clk 0:00:24]}  Rac8 {[%clk 0:01:50]} 21. c3 {[%clk 0:00:24]}  Qc4 {[%clk 0:01:49]} 22. Qxc4 {[%clk 0:00:22]}  Rxc4 {[%clk 0:01:50]} 23. h3 {[%clk 0:00:22]}  Rdc8 {[%clk 0:01:47]} 24. b6 {[%clk 0:00:19]}  a6 {[%clk 0:01:39]} 25. Rae1 {[%clk 0:00:17]}  Re8 {[%clk 0:01:29]} 26. Kg2 {[%clk 0:00:17]}  Nf7 {[%clk 0:01:04]} 27. Kg3 {[%clk 0:00:18]}  Nd8 {[%clk 0:01:03]} 28. Re3 {[%clk 0:00:15]}  Nc6 {[%clk 0:01:03]} 29. Nxc6 {[%clk 0:00:11]}  Bxc6 {[%clk 0:01:00]} 30. Rd1 {[%clk 0:00:09]}  Rd8 {[%clk 0:00:54]} 31. Rd4 {[%clk 0:00:08]}  Bb5 {[%clk 0:00:43]} 32. f5 {[%clk 0:00:07]}  gxf5 {[%clk 0:00:36]} 33. gxf5 {[%clk 0:00:08]}  exf5 {[%clk 0:00:37]} 34. e6 {[%clk 0:00:08]}  Rxd4 {[%clk 0:00:32]} 35. cxd4 {[%clk 0:00:07]}  Re8 {[%clk 0:00:17]} 36. Kf4 {[%clk 0:00:06]}  Ba4 {[%clk 0:00:10]} 37. Kxf5 {[%clk 0:00:05]}  Bc2+ {[%clk 0:00:09]} 38. Ke5 {[%clk 0:00:05]}  Be4 {[%clk 0:00:09]} 39. Rxe4 {[%clk 0:00:05]}  dxe4 {[%clk 0:00:09]} 40. d5 {[%clk 0:00:06]}  e3 {[%clk 0:00:10]} 41. d6 {[%clk 0:00:07]}  e2 {[%clk 0:00:10]} 42. d7 {[%clk 0:00:07]}  Rb8 {[%clk 0:00:10]} 43. e7 {[%clk 0:00:07]}  Kf7 {[%clk 0:00:11]} 44. d8=Q {[%clk 0:00:07]}  Rxd8 {[%clk 0:00:10]} 45. exd8=Q {[%clk 0:00:08]} 1-0


[Site "https://www.chess.com"]